Cogmind - Beta 13 @@@ ROGUE MODE // 2024.03.10 @ 14:48:19 // AFD2019/Pay2Buy Player: Minty Result: Destroyed by P-80 Master with Gamma Rifle Performance ------------- Evolutions (7) 3500 Regions Visited (16) 3200 Robots Destroyed (165) 825 Value Destroyed (6912) 6912 Prototype IDs (28) 560 Alien Tech Used (0) 0 Bonus (2643) 2643 TOTAL SCORE: 17640 Bonus ------- High Alert Combat Kills 1012 Follower Combat Kills 524 Awakened Behemoth Slayer 1000 Met Imprinter 300 Was Imprinted 300 Scanned by Researcher 500 Friendly Fire -993 Cogmind --------- Core Integrity 0/1300 Matter 252/300 Energy 97/100 System Corruption 13% Temperature Cool (0) Movement Hovering (60) Location -3/Testing Parts ------- > --- POWER (2) -------- (None) > --- PROPULSION (4) --- Combat Linear Gravjet > --- UTILITY (8) ------ Visual Processing Unit 0b10 Decoder Chip [Generic] > --- WEAPON (7) ------- Compact Linear Accelerator > --- INVENTORY (10) --- Launcher Loader Improved Recalibrator Hacking Drone Bay (1/1) Enhanced Quantum Rifle Enhanced Gamma Bomb Array Plasma Cutter CR-A16's Behemoth Slayer Peak State ------------ > --- POWER ------------ Antimatter Reactor Quantum Reactor > --- PROPULSION ------- Armored Leg Enhanced Armored Leg > --- UTILITY ---------- Visual Processing Unit Makeshift Sensor Array Experimental Signal Interpreter 0b10 Decoder Chip [Generic] Improved Targeting Computer Launcher Guidance Computer Weapon Cycler > --- WEAPON ----------- Advanced Variable Charge Gun Advanced Variable Charge Gun Advanced Variable Charge Gun Heavy Proton Cannon Lance > --- INVENTORY -------- Fission Core Light Quantum Reactor Launcher Loader Improved Recalibrator Hacking Drone Bay Scatter Rocket Array Plasma Cutter CR-A16's Behemoth Slayer [Rating: 102] Favorites ----------- Power Heavy Deuterium Engine Engine Heavy Deuterium Engine Power Core Fission Core Reactor Antimatter Reactor Propulsion Armored Treads Treads Armored Treads Leg Enhanced Armored Leg Wheel Compact Wheel Hover Unit Combat Linear Gravjet Flight Unit Improved VTOL Module Utility Visual Processing Unit Device Weapon Cycler Storage Small Matter Pod Processor Visual Processing Unit Protection Improved Heavy Armor Plating Weapon Improved Heavy Machine Gun Energy Gun Improved Medium Laser Energy Cannon Cooled Particle Cannon Ballistic Gun Improved Heavy Machine Gun Ballistic Cannon Heavy Assault Cannon Launcher Scatter Rocket Array Special Weapon Plasma Cutter Piercing Weapon CR-A16's Behemoth Slayer Build | -11 -10 -10 -9 -8 -7 -7 -7 -7 -6 -6 -6 -6 -5 -4 -3 -3 ------- Run | Yrd Mat Min Mat Mat Fac Low Low Zio Pro Fac Low Low Fac Fac Res Tes Slots Evolved 14 | . . . 2 2 2 . . . . 2 . . 2 2 2 . Power 1 | . . . . . . . . . . . . . . 1 . . Propulsion 2 | . . . . 1 . . . . . . . . . 1 . . Utility 6 | . . . 2 . 1 . . . . 1 . . 1 . 1 . Weapon 5 | . . . . 1 1 . . . . 1 . . 1 . 1 . Parts Attached 72 | . . . 8 6 2 4 1 8 3 16 2 . 5 3 13 1 Power 13 | . . . . 1 2 1 . 1 . 2 1 . . 2 3 . Engine 6 | . . . . 1 2 1 . 1 . 1 . . . . . . Core 3 | . . . . . . . . . . . 1 . . . 2 . Reactor 4 | . . . . . . . . . . 1 . . . 2 1 . Propulsion 8 | . . . 4 3 . . . . . . . . . . 1 . Treads . | . . . . . . . . . . . . . . . . . Leg 2 | . . . . 1 . . . . . . . . . . 1 . Wheel . | . . . . . . . . . . . . . . . . . Hover . | . . . . . . . . . . . . . . . . . Flight 6 | . . . 4 2 . . . . . . . . . . . . Utility 16 | . . . . . . . . 1 . 7 . . 2 . 5 1 Device 11 | . . . . . . . . 1 . 5 . . 2 . 2 1 Storage . | . . . . . . . . . . . . . . . . . Processor 1 | . . . . . . . . . . 1 . . . . . . Hackware . | . . . . . . . . . . . . . . . . . Protection 4 | . . . . . . . . . . 1 . . . . 3 . Artifact . | . . . . . . . . . . . . . . . . . Weapon 35 | . . . 4 2 . 3 1 6 3 7 1 . 3 1 4 . Energy Gun 2 | . . . . . . 1 . . . . . . . . 1 . Energy Cannon . | . . . . . . . . . . . . . . . . . Ballistic Gun 2 | . . . . . . . . 1 1 . . . . . . . Ballistic Cannon 7 | . . . 1 1 . 1 . 1 1 2 . . . . . . Launcher 14 | . . . 2 . . 1 1 2 . 3 1 . 3 1 . . Special Weapon 3 | . . . 1 1 . . . 1 . . . . . . . . Impact Weapon . | . . . . . . . . . . . . . . . . . Slashing Weapon . | . . . . . . . . . . . . . . . . . Piercing Weapon 7 | . . . . . . . . 1 1 2 . . . . 3 . Special Melee Weapon . | . . . . . . . . . . . . . . . . . Unidentified Prototypes 6 | . . . . . . . . 1 . 2 . . . . 3 . Parts Lost 61 | . . . 11 3 2 3 3 . 1 10 . . 5 11 10 2 Power 7 | . . . 2 . . . . . . 1 . . . 2 2 . Propulsion 12 | . . . 2 3 . 2 . . . 2 . . . 2 1 . Utility 15 | . . . 2 . . . 1 . 1 2 . . 1 2 6 . Weapon 27 | . . . 5 . 2 1 2 . . 5 . . 4 5 1 2 Highest Loss Streak 11 | . . . 5 2 1 1 2 . 1 7 . . 3 11 10 1 To Critical Strikes 1 | . . . . . . . . . . 1 . . . . . . Average Slot Usage (%) 54 | . 80 85 57 39 57 49 42 52 62 67 62 66 68 82 33 22 Engine 4 | . 14 14 1 3 7 7 7 7 7 4 . . . . . . Treads 4 | . . . . . . 3 7 7 14 7 . . . . . . Leg 3 | . . . . 3 7 4 . . . 2 7 13 11 9 1 . Flight 1 | . 28 28 20 8 . . . . . . . . . . . . Device 3 | . . . 4 . . . . 1 . 11 6 6 8 9 3 . Processor 16 | . 9 14 13 9 12 15 15 15 9 18 20 20 23 26 19 9 Protection 1 | . . . . . . 1 4 . . . 6 6 1 . 3 . Energy Gun 2 | . . . . 9 9 5 . . . 2 . . 2 15 . 4 Energy Cannon 2 | . . . . . 3 7 . . . 2 6 6 6 4 . . Ballistic Gun 3 | . . . . . . . 6 6 6 3 5 6 1 . . . Ballistic Cannon 2 | . . . . . . . . 6 6 6 . . . . . 1 Launcher 3 | . 28 28 8 . 6 . . 5 6 2 . . 3 . . . Naked Turns . | . . . . . . . . . . . . . . . . . Heaviest Build 70 | 5 5 5 10 26 32 38 18 36 36 58 55 39 49 70 26 25 Greatest Support 47 | 8 8 8 10 16 16 20 20 20 47 47 36 36 36 36 28 14 Greatest Overweight (x) 3 | . . . 1 2 3 2 . 1 1 2 2 1 1 1 . 1 Average Overweight (x) . | . . . . . 1 1 . . . . 1 1 . . . . Largest Inventory Capacity 10 | . 10 10 10 10 10 10 10 10 10 10 10 10 10 10 10 10 Average Capacity 10 | . 10 10 10 10 10 10 10 10 10 10 10 10 10 10 10 10 Most Carried 10 | . 1 1 9 8 7 7 7 9 10 10 10 10 10 9 9 8 Average Carried 7 | . . 1 4 5 6 6 6 5 6 8 9 10 9 8 7 5 Final Capacity 10 | 10 10 10 10 10 10 10 10 10 10 10 10 10 10 10 10 10 Final Carried 10 | . 1 1 8 4 7 7 7 5 8 8 10 10 10 9 5 8 Class Distribution -------------------- 45% | Mutant 32% | Gunner 11% | Skirmisher 4% | Sprinter Dominant Class ---------------- Sprinter | -10/Materials Sprinter | -10/Mines Sprinter | -9/Materials Mutant | -8/Materials Gunner | -7/Factory Mutant | -7/Lower Caves Mutant | -7/Lower Caves Gunner | -7/Zion Skirmisher | -6/Proximity Caves Gunner | -6/Factory Mutant | -6/Lower Caves Mutant | -6/Lower Caves Mutant | -5/Factory Assassin | -4/Factory Scout | -3/Research Mutant | -3/Testing Resources | -11 -10 -10 -9 -8 -7 -7 -7 -7 -6 -6 -6 -6 -5 -4 -3 -3 ----------- Run | Yrd Mat Min Mat Mat Fac Low Low Zio Pro Fac Low Low Fac Fac Res Tes Matter Collected 3047 | . 20 . 337 419 31 195 138 32 363 660 120 . 569 20 91 52 Remotely . | . . . . . . . . . . . . . . . . . Salvage Created 5860 | . 94 . 480 610 221 784 81 . 532 1110 348 . 828 333 308 131 Parts . | . . . . . . . . . . . . . . . . . Haulers Intercepted 2 | . . . 2 . . . . . . . . . . . . . Recyclers Shooed . | . . . . . . . . . . . . . . . . . Parts Field Recycled . | . . . . . . . . . . . . . . . . . Retrieved Matter . | . . . . . . . . . . . . . . . . . Parts Self-Destructed . | . . . . . . . . . . . . . . . . . Prevented . | . . . . . . . . . . . . . . . . . Kills | -11 -10 -10 -9 -8 -7 -7 -7 -7 -6 -6 -6 -6 -5 -4 -3 -3 ------- Run | Yrd Mat Min Mat Mat Fac Low Low Zio Pro Fac Low Low Fac Fac Res Tes Combat Hostiles Destroyed 128 | . 9 . 21 12 5 12 5 . 15 20 5 . 17 2 4 1 Melee 1 | . . . . . . . . . . 1 . . . . . . Guns 22 | . . . . 7 . 2 . . 1 4 1 . 2 1 4 . Cannons 26 | . . . 3 2 . 5 . . 5 7 1 . 2 . . 1 AOE 72 | . 9 . 16 3 5 4 5 . 8 6 3 . 12 1 . . Classes Destroyed 20 | . 5 . 6 1 . 3 . . 1 . 1 . . 1 1 1 Worker 8 | . 1 . . 1 . . . . . 1 . . 2 1 . 2 Builder 8 | . 2 . 1 . . . . . . 2 . . 2 1 . . Tunneler 2 | . . . 1 . 1 . . . . . . . . . . . Hauler 2 | . . . 2 . . . . . . . . . . . . . Recycler 5 | . 1 . . 2 . . . . . . . . 1 1 . . Mechanic 1 | . . . 1 . . . . . . . . . . . . . Operator 4 | . . . 1 . . . . . . 1 . . 2 . . . Watcher 5 | . 2 . 2 . . . . . . 1 . . . . . . Swarmer 29 | . 9 . 7 . . 3 4 . 5 . . . 1 . . . Grunt 49 | . . . 9 8 4 3 . . 3 13 3 . 4 2 . . Brawler 3 | . . . . . . 1 . . 2 . . . . . . . Duelist 5 | . . . . . . . . . 3 . 1 . 1 . . . Researcher 1 | . . . . . . . . . . . . . . . . 1 Sentry 19 | . . . 5 2 1 . . . 1 4 . . 6 . . . Specialist 2 | . . . . . . . . . . . . . . . 2 . Hunter 9 | . . . . 2 . . 1 . . 1 . . 2 . 2 1 Programmer 6 | . . . . . . 1 . . . 1 1 . 3 . . . Behemoth 2 | . . . . . . . . . 1 1 . . . . . . Z-Courier 1 | . . . . . . . . . . 1 . . . . . . Z-Heavy 1 | . . . . . . . . . . . . . . 1 . . Decomposer 2 | . . . . . . 2 . . . . . . . . . . Packrat 1 | . . . . . . 1 . . . . . . . . . . Samaritan 1 | . . . . . . . . . . . 1 . . . . . Thug 3 | . . . . . . 3 . . . . . . . . . . Butcher 1 | . . . . . . 1 . . . . . . . . . . Best Kill Streak 16 | . 15 . 16 8 4 4 5 . 9 5 4 . 9 3 2 1 Combat Bots Only 11 | . 3 . 11 7 3 4 5 . 9 5 4 . 8 2 2 1 Max Kills in Single Turn 8 | . 3 . 6 3 2 4 4 . 8 2 3 . 4 3 1 1 Gunslinging . | . . . . . . . . . . . . . . . . . Exploded 8 | . 3 . 5 2 1 4 4 . 8 2 3 . 2 1 . . Melee 1 | . . . . . . . . . . 1 . . . . . . Uniques/NPCs Destroyed . | . . . . . . . . . . . . . . . . . Combat | -11 -10 -10 -9 -8 -7 -7 -7 -7 -6 -6 -6 -6 -5 -4 -3 -3 -------- Run | Yrd Mat Min Mat Mat Fac Low Low Zio Pro Fac Low Low Fac Fac Res Tes Hostile Shots Fired 845 | . 29 . 88 61 35 41 29 . 28 230 4 . 84 94 66 56 Missed 257 | . 21 . 32 24 10 14 2 . 8 73 . . 21 15 21 16 Damage Taken 11915 | . 108 . 908 587 314 445 555 . 776 2119 66 . 1766 1703 1739 829 Core 3525 | . 43 . 399 157 80 56 82 . 154 259 . . 297 697 993 308 Absorbed by Shields 78 | . . . . . . . . . . 67 . . . . 11 . Redirected to Shielding 258 | . . . . . . . 119 . . . . . . . 139 . Regen/Repaired (Parts) 677 | . . . . . . . . 677 . . . . . . . . Core Remaining (%) 59 | 100 . 82 . 71 . . . . 46 . . 69 70 39 . . Volleys Fired 309 | . 6 . 46 45 15 30 11 . 10 55 8 . 45 2 18 18 Largest 5 | . 2 . 2 3 3 3 2 . 3 4 3 . 4 5 1 2 Hottest 371 | . 60 . 160 151 177 196 136 . 125 191 115 . 321 371 240 130 Shots Fired 482 | . 11 . 51 61 29 49 12 . 20 104 17 . 81 9 17 21 Gun 208 | . . . . 50 21 17 9 . 9 40 8 . 21 6 17 10 Cannon 166 | . . . 4 8 2 31 1 . 9 58 8 . 32 2 . 11 Launcher 87 | . 11 . 26 3 6 1 2 . 2 6 1 . 28 1 . . Special 21 | . . . 21 . . . . . . . . . . . . . Kinetic 156 | . . . 4 11 6 2 7 . 18 76 8 . 13 . . 11 Thermal 146 | . . . 21 36 13 4 . . . 7 8 . 24 6 17 10 Explosive 78 | . 11 . 26 . . 1 2 . 2 6 1 . 28 1 . . Electromagnetic 102 | . . . . 14 10 42 3 . . 15 . . 16 2 . . Robot Hit Streak 19 | . . . 19 14 7 9 4 . 6 9 8 . 13 10 5 6 Robot Miss Streak 9 | . 5 . 6 4 4 4 9 . 7 5 4 . 4 1 2 3 Penetration Max 1 | . . . . . . . . . . 1 . . 1 . . . Secondary Targets . | . . . . . . . . . . . . . . . . . Shots Hit Robots 301 | . . . 35 34 14 31 9 . 18 60 13 . 54 8 13 12 Core Hits 341 | . 16 . 38 27 15 32 9 . 53 40 17 . 59 19 6 10 Critical Kills 3 | . . . . . . . . . . 3 . . . . . . Critical Parts Destroyed 4 | . . . . . . . . . . 4 . . . . . . Critical Strikes 22 | . . . 4 5 . 2 . . . 9 . . 1 1 . . Burn 6 | . . . 3 3 . . . . . . . . . . . . Destroy 9 | . . . . . . . . . . 9 . . . . . . Blast 4 | . . . 1 2 . 1 . . . . . . . . . . Corrupt 2 | . . . . . . 1 . . . . . . 1 . . . Impale 1 | . . . . . . . . . . . . . . 1 . . Melee Attacks 23 | . . . . . . . . . 5 4 1 . . 3 5 5 Impact . | . . . . . . . . . . . . . . . . . Slashing . | . . . . . . . . . . . . . . . . . Piercing 23 | . . . . . . . . . 5 4 1 . . 3 5 5 Sneak Attacks 5 | . . . . . . . . . . . 1 . . 2 1 1 Combat Hostiles . | . . . . . . . . . . . . . . . . . Follow-up Attacks . | . . . . . . . . . . . . . . . . . Damage Inflicted 18093 | . 1228 . 2029 1766 707 1100 525 . 1929 2770 757 . 3158 902 616 606 Guns 3013 | . . . . 417 192 235 145 . 130 608 143 . 385 88 523 147 Cannons 3492 | . . . 202 446 40 582 31 . 330 854 141 . 610 37 . 219 Explosions 10846 | . 1219 . 1622 889 475 283 349 . 1400 1248 405 . 2157 679 . 120 Melee 494 | . . . . . . . . . 69 48 68 . . 98 91 120 Ramming 55 | . 9 . 12 14 . . . . . 12 . . 6 . 2 . Kinetic 3888 | . . . 202 931 392 133 113 . 460 1075 143 . 220 . . 219 Thermal 2406 | . . . 193 220 153 50 . . . 326 141 . 565 88 523 147 Explosive 9669 | . 1219 . 1622 404 17 283 349 . 1400 1134 405 . 2157 679 . . Electromagnetic 1581 | . . . . 197 145 634 63 . . 175 . . 210 37 . 120 Impact . | . . . . . . . . . . . . . . . . . Slashing . | . . . . . . . . . . . . . . . . . Piercing 494 | . . . . . . . . . 69 48 68 . . 98 91 120 Highest Corruption 13 | . . . . . . 2 2 2 1 1 2 2 1 . 11 13 Average Corruption 2 | . . . . . . 1 2 2 1 1 1 2 1 . 9 11 Corruption Purged . | . . . . . . . . . . . . . . . . . Corruption Blocked . | . . . . . . . . . . . . . . . . . Effects 61 | . . . . . . 8 13 2 8 6 8 1 1 . 4 10 Message Errors 15 | . . . . . . 3 5 1 . 2 1 . . . 1 2 Matter Fused 12 | . . . . . . . 4 . 3 1 1 1 . . 1 1 Heat Flow Errors 9 | . . . . . . 1 . 1 3 . 4 . . . . . Energy Discharges 5 | . . . . . . . 2 . 1 1 1 . . . . . Parts Rejected 2 | . . . . . . 1 . . . . . . . . . 1 Data Loss (minor) 6 | . . . . . . . 1 . 1 2 . . . . . 2 Data Loss (major) 4 | . . . . . . 1 . . . . 1 . . . 1 1 Misfires 3 | . . . . . . 1 . . . . . . . . . 2 Misdirections 1 | . . . . . . . . . . . . . . . . 1 Weapon Failures 4 | . . . . . . 1 1 . . . . . 1 . 1 . Overload Shots 16 | . . . . . . . . . . 3 . . 4 . 9 . Overflow Damage 482 | . 77 . 81 16 6 48 19 . . 93 45 . 79 11 . 7 Projectiles 142 | . . . . 10 . 48 . . . 32 45 . . . . 7 Explosions 340 | . 77 . 81 6 6 . 19 . . 61 . . 79 11 . . Melee . | . . . . . . . . . . . . . . . . . Knockbacks 10 | . . . . 3 . . . . . 6 . . . . . 1 Impact . | . . . . . . . . . . . . . . . . . Kinetic 10 | . . . . 3 . . . . . 6 . . . . . 1 Secondary . | . . . . . . . . . . . . . . . . . Self-Inflicted Damage 1397 | . 29 . 254 5 19 . 94 . 240 157 . . 388 115 1 95 Shots 44 | . 1 . 6 . 1 . 5 . 9 5 . . 12 4 . 1 Rammed 16 | . 2 . 2 4 . . . . . 7 . . . . 1 . Targets Rammed 19 | . 2 . 2 5 . . . . . 7 . . 2 . 1 . Kicked 3 | . . . . 1 . . . . . . . . 2 . . . Crushed . | . . . . . . . . . . . . . . . . . Highest Temperature 1108 | . 18 . 274 277 195 337 54 159 264 303 221 . 422 735 1108 26 Average Temperature 114 | . 5 . 83 92 66 79 24 92 100 82 71 . 128 518 433 13 Received Heat Transfer 2466 | . 36 . 294 252 120 117 63 . 57 714 36 . 216 489 . 72 Effects 30 | . . . 2 . . . . . . 1 . . 2 11 14 . Shutdowns 4 | . . . . . . . . . . . . . 2 1 1 . Energy Bleed 5 | . . . . . . . . . . 1 . . . . 4 . Interference 2 | . . . 2 . . . . . . . . . . . . . Short Circuit 4 | . . . . . . . . . . . . . . 2 2 . Damage (minor) 2 | . . . . . . . . . . . . . . . 2 . Damage (major) 10 | . . . . . . . . . . . . . . 7 3 . Damage (core) 3 | . . . . . . . . . . . . . . 1 2 . Siege Activations . | . . . . . . . . . . . . . . . . . Robots Corrupted 2 | . . . . . . 1 . . . . . . 1 . . . Combat Hostiles 2 | . . . . . . 1 . . . . . . 1 . . . Parts Fried . | . . . . . . . . . . . . . . . . . Impact Corruptions . | . . . . . . . . . . . . . . . . . Robots Melted 2 | . . . 2 . . . . . . . . . . . . . Combat Hostiles 2 | . . . 2 . . . . . . . . . . . . . Parts Melted . | . . . . . . . . . . . . . . . . . Heat Transferred 4975 | . . . 1920 703 235 111 . . . 298 185 . 705 148 485 185 Parts Sabotaged . | . . . . . . . . . . . . . . . . . Parts Stolen . | . . . . . . . . . . . . . . . . . Parts Stripped . | . . . . . . . . . . . . . . . . . Power Chain Reactions 1 | . . . . . 1 . . . . . . . . . . . Alert | -11 -10 -10 -9 -8 -7 -7 -7 -7 -6 -6 -6 -6 -5 -4 -3 -3 ------- Run | Yrd Mat Min Mat Mat Fac Low Low Zio Pro Fac Low Low Fac Fac Res Tes Peak Influence 1448 | . 597 238 1186 995 949 . . . . 525 . . 1448 741 382 529 Initial 709 | . . 238 92 500 452 . . . . 144 . . 132 709 352 72 Average 490 | . 272 238 697 648 713 . . . . 324 . . 681 719 302 185 Maximum Alert Level 4 | . 2 1 4 3 3 . . . . 2 . . 4 3 1 2 Low Security (%) 16 | . 41 . 15 . . . . . . 11 . . 24 . 18 48 Level 1 33 | . 20 100 3 . . . . . . 61 . . 8 . 81 50 Level 2 24 | . 38 . 27 68 52 . . . . 26 . . 15 4 . 1 Level 3 21 | . . . 40 31 47 . . . . . . . 34 95 . . Level 4 4 | . . . 14 . . . . . . . . . 16 . . . Level 5 . | . . . . . . . . . . . . . . . . . High Security . | . . . . . . . . . . . . . . . . . Max Security . | . . . . . . . . . . . . . . . . . Squads Dispatched 39 | . 2 . 6 3 4 . . . 1 5 . . 12 2 2 2 Investigation 15 | . 2 . 6 2 2 . . . . 1 . . 2 . . . Extermination 4 | . . . . . 1 . . . . . . . 2 . . 1 Reinforcement 10 | . . . . 1 . . . . . 2 . . 2 2 2 1 Assault 4 | . . . . . 1 . . . 1 1 . . 1 . . . Garrison 6 | . . . . . . . . . . 1 . . 5 . . . Intercept . | . . . . . . . . . . . . . . . . . Searches Triggered . | . . . . . . . . . . . . . . . . . Construction Impeded 3 | . . . . . . . . . . 1 . . 2 . . . Haulers Reinforced . | . . . . . . . . . . . . . . . . . Active Scanning Responses . | . . . . . . . . . . . . . . . . . Cargo Convoy Interrupts . | . . . . . . . . . . . . . . . . . Stealth | -11 -10 -10 -9 -8 -7 -7 -7 -7 -6 -6 -6 -6 -5 -4 -3 -3 --------- Run | Yrd Mat Min Mat Mat Fac Low Low Zio Pro Fac Low Low Fac Fac Res Tes Distress Signals 2 | . . . . 1 . . . . . 1 . . . . . . Communications Jammed . | . . . . . . . . . . . . . . . . . Distress Signals . | . . . . . . . . . . . . . . . . . Times Spotted 198 | . 14 . 38 16 12 13 8 . 14 25 5 . 27 12 6 8 Peak Tracking Total 11 | . 7 . 10 4 6 4 5 . 7 6 4 . 5 11 2 4 Tactical Retreats 9 | . 1 . 5 . . . . . 2 1 . . . . . . Traps | -11 -10 -10 -9 -8 -7 -7 -7 -7 -6 -6 -6 -6 -5 -4 -3 -3 ------- Run | Yrd Mat Min Mat Mat Fac Low Low Zio Pro Fac Low Low Fac Fac Res Tes Traps Triggered 4 | . . . 1 . . . . . . 1 . . 1 . 1 . Indirectly . | . . . . . . . . . . . . . . . . . Trap Hack Attempts . | . . . . . . . . . . . . . . . . . Triggered . | . . . . . . . . . . . . . . . . . Disarmed 4 | . . . 4 . . . . . . . . . . . . . Reprogrammed 2 | . . . . . 2 . . . . . . . . . . . Reused . | . . . . . . . . . . . . . . . . . Traps Extracted . | . . . . . . . . . . . . . . . . . Installed . | . . . . . . . . . . . . . . . . . Triggered 1 | . . . . . . 1 . . . . . . . . . . Objects Rigged 5 | . 5 . . . . . . . . . . . . . . . Exploded 2 | . 2 . . . . . . . . . . . . . . . Machines | -11 -10 -10 -9 -8 -7 -7 -7 -7 -6 -6 -6 -6 -5 -4 -3 -3 ---------- Run | Yrd Mat Min Mat Mat Fac Low Low Zio Pro Fac Low Low Fac Fac Res Tes Machines Disabled 60 | . 14 . 5 5 10 1 . . 1 4 . . 11 . 1 8 Max in Single Turn 6 | . 6 . 1 1 6 1 . . . 1 . . 5 . 1 5 Garrison Access 4 | . . . . . 1 . . . . 1 . . 1 1 . . Machines Repaired . | . . . . . . . . . . . . . . . . . Machines Dismantled 10 | . . . . 2 . . . 8 . . . . . . . . Machines Sabotaged 1 | . . . 1 . . . . . . . . . . . . . Overloaded Fab Kills . | . . . . . . . . . . . . . . . . . Hacking | -11 -10 -10 -9 -8 -7 -7 -7 -7 -6 -6 -6 -6 -5 -4 -3 -3 --------- Run | Yrd Mat Min Mat Mat Fac Low Low Zio Pro Fac Low Low Fac Fac Res Tes Machines Accessed 27 | . 3 . 7 2 3 1 2 . . 2 . . 3 1 . 3 Terminals 16 | . 3 . 6 1 3 . . . . . . . 1 . . 2 Fabricators . | . . . . . . . . . . . . . . . . . Repair Stations . | . . . . . . . . . . . . . . . . . Recycling Units . | . . . . . . . . . . . . . . . . . Scanalyzers 5 | . . . 1 1 . . . . . 1 . . 1 . . 1 Garrison Access 3 | . . . . . . . . . . 1 . . 1 1 . . Total Hacks 81 | . 9 . 26 7 12 1 8 . . 4 . . 7 2 . 5 Successful 41 | . 4 . 14 3 6 1 8 . . 2 . . 1 1 . 1 Failed 40 | . 5 . 12 4 6 . . . . 2 . . 6 1 . 4 Catastrophic 2 | . . . . . 1 . . . . 1 . . . . . . Database Lockouts . | . . . . . . . . . . . . . . . . . Manual 60 | . 9 . 11 7 5 . . . . 5 . . 7 3 4 9 Terminals 58 | . 9 . 25 6 12 . . . . . . . 3 . . 3 Fabricators . | . . . . . . . . . . . . . . . . . Repair Stations . | . . . . . . . . . . . . . . . . . Recycling Units . | . . . . . . . . . . . . . . . . . Scanalyzers 6 | . . . 1 1 . . . . . 1 . . 1 . . 2 Garrison Access 8 | . . . . . . . . . . 3 . . 3 2 . . Terminal Hacks 22 | . . . 7 . 4 1 8 . . . . . 1 . . 1 Record 7 | . . . . . . . 7 . . . . . . . . . Prototype ID Bank 2 | . . . 2 . . . . . . . . . . . . . Open Door 3 | . . . . . . 1 1 . . . . . . . . 1 Open DSF 2 | . . . . . 1 . . . . . . . 1 . . . Alert Level 1 | . . . 1 . . . . . . . . . . . . . Locate Traps 4 | . . . 3 . 1 . . . . . . . . . . . Disarm Traps 1 | . . . 1 . . . . . . . . . . . . . Reprogram Traps 1 | . . . . . 1 . . . . . . . . . . . Maintenance Status 1 | . . . . . 1 . . . . . . . . . . . Fabricator Hacks . | . . . . . . . . . . . . . . . . . Repair Station Hacks . | . . . . . . . . . . . . . . . . . Recycling Unit Hacks . | . . . . . . . . . . . . . . . . . Scanalyzer . | . . . . . . . . . . . . . . . . . Garrison Access Hacks 2 | . . . . . . . . . . 1 . . . 1 . . Seal Access 2 | . . . . . . . . . . 1 . . . 1 . . Unauthorized Hacks 17 | . 4 . 7 3 2 . . . . 1 . . . . . . Terminals 14 | . 4 . 6 2 2 . . . . . . . . . . . Assimilate 1 | . . . . 1 . . . . . . . . . . . . Botnet 6 | . 1 . 3 . 2 . . . . . . . . . . . Detonate 1 | . 1 . . . . . . . . . . . . . . . Disrupt 2 | . 1 . 1 . . . . . . . . . . . . . Operators 1 | . . . . 1 . . . . . . . . . . . . Sabotage 3 | . 1 . 2 . . . . . . . . . . . . . Fabricators . | . . . . . . . . . . . . . . . . . Repair Stations . | . . . . . . . . . . . . . . . . . Recycling Units . | . . . . . . . . . . . . . . . . . Scanalyzers 3 | . . . 1 1 . . . . . 1 . . . . . . Extract 3 | . . . 1 1 . . . . . 1 . . . . . . Garrison Access . | . . . . . . . . . . . . . . . . . Data Cores Recovered 2 | . . . 1 . . . . . . . . . . 1 . . Used 1 | . . . 1 . . . . . . . . . . . . . Hacking Detections 17 | . 3 . 5 1 3 . . . . 1 . . 2 . . 2 Full Trace Events 8 | . 1 . 3 1 2 . . . . . . . 1 . . . Feedback Events . | . . . . . . . . . . . . . . . . . Feedback Blocked . | . . . . . . . . . . . . . . . . . Robot Schematics Acquired 1 | . . . . . . . . . . . . . . . . 1 Robots Built . | . . . . . . . . . . . . . . . . . Authchips . | . . . . . . . . . . . . . . . . . Time . | . . . . . . . . . . . . . . . . . Total Robot Build Rating . | . . . . . . . . . . . . . . . . . Part Schematics Acquired 8 | . . . 1 1 . . . . . 2 . . . . . 4 Parts Built . | . . . . . . . . . . . . . . . . . Authchips . | . . . . . . . . . . . . . . . . . Time . | . . . . . . . . . . . . . . . . . Total Part Build Rating . | . . . . . . . . . . . . . . . . . Parts Repaired . | . . . . . . . . . . . . . . . . . Time . | . . . . . . . . . . . . . . . . . Parts Recycled . | . . . . . . . . . . . . . . . . . Recycled Matter . | . . . . . . . . . . . . . . . . . Retrieved Matter . | . . . . . . . . . . . . . . . . . Retrieved Components . | . . . . . . . . . . . . . . . . . Parts Scanalyzed . | . . . . . . . . . . . . . . . . . Part Schematics Acquired . | . . . . . . . . . . . . . . . . . Parts Damaged . | . . . . . . . . . . . . . . . . . Bothacking | -11 -10 -10 -9 -8 -7 -7 -7 -7 -6 -6 -6 -6 -5 -4 -3 -3 ------------ Run | Yrd Mat Min Mat Mat Fac Low Low Zio Pro Fac Low Low Fac Fac Res Tes Used RIF Installer . | . . . . . . . . . . . . . . . . . Robots Hacked . | . . . . . . . . . . . . . . . . . Non-combat . | . . . . . . . . . . . . . . . . . Combat . | . . . . . . . . . . . . . . . . . Robot Hacks Applied . | . . . . . . . . . . . . . . . . . Relay Couplers Released 4 | . . . . . 2 . . . . . . . 2 . . . Machine Destruction 4 | . . . . . 2 . . . . . . . 2 . . . Fabnet Peak Effective % . | . . . . . . . . . . . . . . . . . Robots Rewired 1 | . . . . . . . . . . . . . . . . 1 Allies Hacked . | . . . . . . . . . . . . . . . . . Hacks Repelled . | . . . . . . . . . . . . . . . . . Allies | -11 -10 -10 -9 -8 -7 -7 -7 -7 -6 -6 -6 -6 -5 -4 -3 -3 -------- Run | Yrd Mat Min Mat Mat Fac Low Low Zio Pro Fac Low Low Fac Fac Res Tes Total Allies 16 | . . . . . . . . 4 . 2 . . 2 2 5 1 Largest Group 4 | . . . . . . . . 4 4 1 . . 2 3 4 1 Highest-Rated Group 295 | . . . . . . . . 159 159 29 . . 192 295 156 155 Highest-Rated Ally 155 | . . . . . . . . 41 41 29 . . 96 103 39 155 Zionite Dispatches 5 | . . . . . . . . . . 2 . . . 1 2 . Heavy 1 | . . . . . . . . . . . . . . 1 . . Fire 1 | . . . . . . . . . . . . . . . 1 . Explosive Resupply 1 | . . . . . . . . . . 1 . . . . . . Offense Resupply 1 | . . . . . . . . . . 1 . . . . . . Zionite Resupply 1 | . . . . . . . . . . . . . . . 1 . Total Orders 5 | . . . . . . . . . . 2 . . . . 2 1 DROP 3 | . . . . . . . . . . 2 . . . . 1 . EXPLORE 2 | . . . . . . . . . . . . . . . 1 1 Ally Attacks 70 | . . . . . . . . . 12 . . . 41 4 . 13 Total Damage 2438 | . . . . . . . . . 399 . . . 1123 257 . 659 Kills 18 | . . . . . . . . . 2 . . . 8 2 . 6 Allies Corrupted 1 | . . . . . . . . . . 1 . . . . . . Allies Melted 1 | . . . . . . . . . . . . . . 1 . . Intel | -11 -10 -10 -9 -8 -7 -7 -7 -7 -6 -6 -6 -6 -5 -4 -3 -3 ------- Run | Yrd Mat Min Mat Mat Fac Low Low Zio Pro Fac Low Low Fac Fac Res Tes Robot Analysis Total . | . . . . . . . . . . . . . . . . . Derelict Logs Recovered . | . . . . . . . . . . . . . . . . . Drone Launches 2 | . . . . . . . . . . . . . . . 1 1 Drone Recoveries 2 | . . . . . . . . . . . . . . . 1 1 Decoded 0b10 Intel 71 | . . . . . . . . . . 33 . . 22 5 11 . Traps 20 | . . . . . . . . . . 12 . . 4 1 3 . Emergency Access 16 | . . . . . . . . . . 9 . . 7 . . . Machines 20 | . . . . . . . . . . 7 . . 9 2 2 . Patrols 4 | . . . . . . . . . . . . . 2 . 2 . Guards 8 | . . . . . . . . . . 4 . . . 1 3 . Exits 3 | . . . . . . . . . . 1 . . . 1 1 . Zionite Intel Received 1 | . . . . . . . . . . . . . . . . 1 Trap Installations 1 | . . . . . . . . . . . . . . . . 1 Exploration | -11 -10 -10 -9 -8 -7 -7 -7 -7 -6 -6 -6 -6 -5 -4 -3 -3 ------------- Run | Yrd Mat Min Mat Mat Fac Low Low Zio Pro Fac Low Low Fac Fac Res Tes Turns Passed 9094 | . 102 10 320 298 441 1020 631 1952 686 1080 792 63 746 155 493 305 Spaces Moved 4920 | 1 258 32 575 191 228 367 339 758 360 440 322 34 385 74 336 220 Core 220 | . . . . . . . . . . 2 . . . 8 210 . Treads 1878 | . . . . . . 182 339 758 360 239 . . . . . . Legs 1335 | . . . . 6 63 185 . . . 199 322 34 385 66 75 . Wheels 212 | . . . . 47 165 . . . . . . . . . . . Hover 271 | . . . . . . . . . . . . . . . 51 220 Flight 1004 | 1 258 32 575 138 . . . . . . . . . . . . Fastest Speed 29 | 32 32 32 32 29 115 250 170 170 170 50 190 190 120 50 50 60 Average Speed 153 | 32 32 32 32 65 173 255 170 235 175 197 236 190 161 175 64 62 Slowest Speed 330 | 32 32 32 105 190 330 260 170 250 250 260 260 190 190 190 110 160 Overloaded Moves . | . . . . . . . . . . . . . . . . . Propulsion Burnouts . | . . . . . . . . . . . . . . . . . Robots Hopped 13 | . 5 . 8 . . . . . . . . . . . . . Cave-ins Triggered . | . . . . . . . . . . . . . . . . . Exploration Rate (%) 32 | 2 68 8 51 21 8 57 55 84 55 19 60 11 17 4 12 24 Regions Visited 16 Branch Regions 8 Pre-discovered Areas 1 | . . . . . . . . 1 . . . . . . . . Known Exits Taken 4 | . . . . . . . . . . 1 . . 1 1 1 . Unknown Exits Taken 12 | 1 1 1 1 1 1 1 1 1 1 . 1 1 . . . . Scrap Searched . | . . . . . . . . . . . . . . . . . Spaces Dug 1 | . . . . . . . . . . . . . . . 1 . Terrain Destroyed 1235 | . 123 . 206 27 101 32 104 . 54 139 38 . 292 20 4 95 Melee 1 | . . . . . . . . . . . . . . . 1 . Projectile 45 | . . . . 2 . 1 . . 2 19 6 . 9 1 3 2 AOE 1189 | . 123 . 206 25 101 31 104 . 52 120 32 . 283 19 . 93 Terrain Rammed . | . . . . . . . . . . . . . . . . . Walls Destroyed . | . . . . . . . . . . . . . . . . . Machines Disabled . | . . . . . . . . . . . . . . . . . Actions | -11 -10 -10 -9 -8 -7 -7 -7 -7 -6 -6 -6 -6 -5 -4 -3 -3 --------- Run | Yrd Mat Min Mat Mat Fac Low Low Zio Pro Fac Low Low Fac Fac Res Tes Total 5841 | . 260 31 630 265 246 402 380 822 381 562 341 33 453 87 585 363 Wait 397 | . . . 1 . . . 29 3 . 29 2 . 16 5 202 110 Move 4880 | . 247 31 560 190 227 366 338 757 359 439 321 33 384 73 335 220 Hop 11 | . 5 . 6 . . . . . . . . . . . . . Pick Up 6 | . . . 1 . . . . . . 3 1 . . . . 1 Fast Attach 15 | . . . 2 . . 1 . 2 . 6 . . . . 4 . Attach 44 | . . . 4 6 . 2 1 3 2 9 1 . 4 2 9 1 Detach 39 | . . . 5 2 2 2 1 2 4 6 4 . 1 1 6 3 Swap 13 | . . . 2 . 2 1 . 3 1 1 1 . 1 1 . . Drop 6 | . . . 1 . . . . . . 3 2 . . . . . Fire 309 | . 6 . 46 45 15 30 11 . 10 55 8 . 45 2 18 18 Melee 23 | . . . . . . . . . 5 4 1 . . 3 5 5 Ram 9 | . 2 . 2 4 . . . . . . . . . . 1 . Kick 3 | . . . . 1 . . . . . . . . 2 . . . Crush 7 | . . . . . . . . . . 7 . . . . . . Escape Stasis 6 | . . . . . . . . . . . . . . . 5 1 Rewire 4 | . . . . . . . . . . . . . . . . 4 Trap . | . . . . . . . . . . . . . . . . . Miscellaneous 69 | . . . . 17 . . . 52 . . . . . . . . Route ------- -11/Scrapyard -10/Materials (discovered 3 exits: *Mat x2 / [*Min]) -10/Mines -9/Materials -8/Materials -7/Factory -7/Lower Caves -7/Lower Caves (discovered 2 exits: *Fac / [*Zio]) -7/Zion (discovered 2 exits: [*Dee] / [*Pro]) -6/Proximity Caves -6/Factory (discovered 2 exits: *Low x2) -6/Lower Caves -6/Lower Caves -5/Factory -4/Factory -3/Research -3/Testing History --------- Turn | Location | Event 1 | -11/Scrapyard | Discovered new exit (range 0) 1 | -11/Scrapyard | Entered Materials 55 | -10/Materials | Discovered new exit (range 18) 88 | -10/Materials | Discovered new exit (range 18) 93 | -10/Materials | Discovered new exit (range 18) 103 | -10/Materials | Entered Mines 110 | -10/Mines | Discovered new exit (range 10) 113 | -10/Mines | Entered Materials 113 | -9/Materials | Evolved 2 slots: Utility x2 221 | -9/Materials | Destroyed 11 combat bots 268 | -9/Materials | Core integrity fell below 50% 298 | -9/Materials | Lost 5 parts (1p1n1u2w) 308 | -9/Materials | Build established: Sprinter 388 | -9/Materials | Core integrity fell below 20% 418 | -9/Materials | Lost 3 parts (1n1u1w) 432 | -9/Materials | Discovered new exit (range 4) 433 | -9/Materials | Entered another Materials area 433 | -8/Materials | Evolved 2 slots: Propulsion x1, Weapon x1 686 | -8/Materials | Discovered new exit (range 11) 691 | -8/Materials | Build established: Mutant 731 | -8/Materials | Entered Factory 731 | -7/Factory | Evolved 2 slots: Utility x1, Weapon x1 745 | -7/Factory | Destroyed 7 combat bots 766 | -7/Factory | Identified exit to DSF 1117 | -7/Factory | Discovered new exit (range 8) 1172 | -7/Factory | Entered Lower Caves 1525 | -7/Lower Caves | Found Scatter Rocket Array 2157 | -7/Lower Caves | Discovered new exit (range 14) 2163 | -7/Lower Caves | Encountered a Warlord checkpoint 2192 | -7/Lower Caves | Entered another Lower Caves area 2203 | -7/Lower Caves | Discovered new exit (range 13) 2467 | -7/Lower Caves | Learned 8 Factory zone layouts 2467 | -7/Lower Caves | Learned Research emergency access door positions 2467 | -7/Lower Caves | Learned Research stockpile data 2794 | -7/Lower Caves | Discovered new exit (range 14) 2823 | -7/Lower Caves | Entered Zion 2928 | -7/Zion | System corruption cleaned by Quarantine Array 3013 | -7/Zion | Found CR-A16's Pointy Stick 3062 | -7/Zion | Visited the Megawrench Repair Shop 3067 | -7/Zion | Megawrench repaired 7 parts 3297 | -7/Zion | Learned location of Warlord (-4) 3372 | -7/Zion | Build established: Gunner 3792 | -7/Zion | Imprinted 3794 | -7/Zion | Declared Zion's savior 3934 | -7/Zion | Learned Factory scanalyzer intel 4066 | -7/Zion | Discovered new exit (range 5) 4069 | -7/Zion | Saw the warning signs outside the Deep Caves entrance 4366 | -7/Zion | Given the Hacking Drone Bay 4366 | -7/Zion | Found Prototype Device 4366 | -7/Zion | Identified Hacking Drone Bay 4643 | -7/Zion | Given A8's code to call for help 4725 | -7/Zion | Discovered new exit (range 18) 4775 | -7/Zion | Entered Proximity Caves 4775 | -6/Proximity Caves | Accompanied by 4 allies 4819 | -6/Proximity Caves | Attracted the attention of an 0b10 outpost 4847 | -6/Proximity Caves | Destroyed 9 combat bots 4854 | -6/Proximity Caves | Lost 3 allies 5113 | -6/Proximity Caves | Build established: Skirmisher 5378 | -6/Proximity Caves | Discovered new exit (range 12) 5394 | -6/Proximity Caves | Spotted B-75 Beast 5426 | -6/Proximity Caves | Core integrity fell below 50% 5429 | -6/Proximity Caves | Revealed the true nature of CR-A16's Pointy Stick 5432 | -6/Proximity Caves | Destroyed B-75 Beast 5461 | -6/Proximity Caves | Entered Factory 5461 | -6/Factory | Evolved 2 slots: Utility x1, Weapon x1 5462 | -6/Factory | Identified exit to Lower Caves 5463 | -6/Factory | Loaded intel: 4 scanalyzer locations 5511 | -6/Factory | Garrison activated, responded to threat 5632 | -6/Factory | Zion Offense Resupply teleported in 5654 | -6/Factory | Found Launcher Loader 6165 | -6/Factory | Lost 7 parts (1p2n1u3w) 6293 | -6/Factory | Spotted B-75 Beast 6299 | -6/Factory | Zion Explosive Resupply teleported in 6476 | -6/Factory | Destroyed B-75 Beast 6511 | -6/Factory | First assault squad dispatched 6541 | -6/Factory | Entered Lower Caves 6883 | -6/Lower Caves | Build established: Mutant 7301 | -6/Lower Caves | Discovered new exit (range 14) 7333 | -6/Lower Caves | Entered another Lower Caves area 7383 | -6/Lower Caves | Discovered new exit (range 7) 7396 | -6/Lower Caves | Entered Factory 7396 | -5/Factory | Evolved 2 slots: Utility x1, Weapon x1 7414 | -5/Factory | Identified exit to DSF 7622 | -5/Factory | Garrison activated, responded to threat 7673 | -5/Factory | Destroyed 8 combat bots 7679 | -5/Factory | Lost 3 parts (1u2w) 7752 | -5/Factory | Enhanced Grunt warped into view, answering call for help 7756 | -5/Factory | Enhanced Grunt warped into view, answering call for help 8088 | -5/Factory | Discovered new exit (range 17) 8128 | -5/Factory | Identified exit to Factory 8142 | -5/Factory | Entered another Factory area 8142 | -4/Factory | Accompanied by 1 ally 8142 | -4/Factory | Evolved 2 slots: Power x1, Propulsion x1 8211 | -4/Factory | Zion Heavy squad teleported in 8247 | -4/Factory | Identified exit to Research 8297 | -4/Factory | Core integrity fell below 50% 8297 | -4/Factory | Entered Research 8297 | -3/Research | Evolved 2 slots: Utility x1, Weapon x1 8316 | -3/Research | Lost 3 allies 8324 | -3/Research | Lost 11 parts (2p2n2u5w) 8528 | -3/Research | Zion Fire squad teleported in 8570 | -3/Research | Zion Zionite Resupply teleported in 8585 | -3/Research | Lost 3 allies 8587 | -3/Research | Found Prototype Protection 8587 | -3/Research | Identified Zio. Weapon Casing 8598 | -3/Research | Identified exit to Testing 8706 | -3/Research | Core integrity fell below 50% 8738 | -3/Research | System corruption reached 10% 8785 | -3/Research | Lost 10 parts (2p1n6u1w) 8790 | -3/Research | Entered Testing 8801 | -3/Testing | Retrieved Zion intel report: Trap Installations 8804 | -3/Testing | Spotted PY-GC71VCWMV3 8812 | -3/Testing | Rewired PY-GC71VCWMV3 8909 | -3/Testing | Scanned by Researcher 8912 | -3/Testing | Core integrity fell below 20% 9095 | -3/Testing | Destroyed by P-80 Master with Gamma Rifle Last Messages --------------- [You open your loot box...] [Congratulations on your very own Com. Linear Accelerator!] 09003_ Penetrated by Slug. 09003_ Enh. Quantum Rifle destroyed. 09006_ System corrupted: Substantial component data lost. 09006_ Penetrated by Slug. 09006_ H-77 Assassin knocked back. 09008_ U-05 Engineer builds a Wall. 09008_ H-77 Assassin destroyed. 09008_ K-01 Serf collects debris. 09022_ Acquired 29 matter. 09024_ Acquired 6 matter. 09026_ System corrupted: Component data lost. 09040_ ALERT: Rogue bot located, Programmers report to Testing Zone 9C. 09045_ Meson Extractor disabled. 09056_ Connecting with Scanalyzer... 09090_ Antiparticle Suffusor explodes. 09092_ System corrupted: Component data lost. 09093_ Destroyed Adv. Heat Sink. 09094_ P-80 Master resets P-80 Master, system corruption cleaned. Map ----- +----------------------------------------------------+ | ?????????????????????????????????????????????????? | | ?????????????????????????????????????????????????? | | ?????????????????????????????????????????????????? | | ?????????????????????????????????????????????????? | | ?????????????????????????????????????????????????? | | ?????????????????????????????????????????????????? | | ???????????????????????????????????????^?????????? | | ?????????????????????????????????????????????????? | | ?????????????????????????????????????????????????? | | ?????????????????????????????????????????????????? | | ?????????????????????????????????????????????????? | | ???????????????????????????? ##?????????????????? | | ??????????????????????????? ????????????????? | | ??????????????????????????? ??????????????? | | ??????????????????????????? ????????????? | | ?#######??#?????#######???? ????????????? | | ?# #????? #???? p???????????? | | ?# """ #?????"" #???# ???????????? | | ?# """ #??# """ #### ??????????? | | ?# """ #??# "" # ??????????? | | ?# #??# # ??????????? | | ?# """ #??# "" # ?????????? | | ?# """ #??# """ # %?????????? | | ?# """ #??# """ # ; ????????? | | ?# #??# ##; ;;p????????? | | ####+#############+#####;@ ; ; ????????? | | %% ;;;;;;;; #????? | | % % +????? | | ;#;## #????? | | ##???????????????? | | ##################+############ #########????????? | | ??????????????# #??????# # #????????? | | ??????????????#"" """ #??????# # #????????? | | ??????????????#"" """ ######## # #????????? | | ??????????????#"" """ / + #????????? | | ??????????????#S """ #####+## # #????????? | | ??????????????#"" """ #??? # #########????????? | | ??????????????#"" """ #??? + ????????????????? | | ??????????????#"" """ #?? ####???????????????? | | ??????????????# #?? #??????????????????? | | ??????????????##########? #??????????????????? | | ????????????????????????? ???????????????????? | | ?????????????????????????#####???????????????????? | | | | | | | | | | | | | | | +----------------------------------------------------+ Best States ------------- Heat Dissipation 46 Energy Generation 41 Energy Capacity 575 Matter Stores 332 Matter Capacity 350 Sight Range 18 Robot Scan Range 19 Terrain Scan Density 10 Armor Coverage 800 Weapon Shielding 100 Weapon Cycling 15 Evasion (%) 71 Targeting Accuracy 6 Launcher Accuracy 20 Core Analysis 6 Recoil Reduction 2 Kinecelleration 30 Item Schematics ----------------- Hvy. Assault Rifle | -9/Materials | Extracted Target Analyzer | -8/Materials | Extracted Hpw. Shock Rifle | -6/Factory | Extracted Hpw. Tractor Beam | -6/Factory | Extracted Lgt. Antimatter Cannon | -3/Testing | Archive Lrn. Phase Cannon | -3/Testing | Archive Exp. Cooling System | -3/Testing | Archive Neutron Missile Launcher | -3/Testing | Archive Robot Schematics ------------------ A-27 Freighter | -3/Testing | Archive Fabricated ------------ Nothing Alien Tech Used ----------------- None Achievements -------------- None Challenges ------------ None Cogshop Purchases (66) ------------------------ Lgt. Ion Engine (599) VTOL Module (1049) VTOL Module (1049) Mni. Grenade Launcher (1049) Mni. Grenade Launcher (1049) Visual Processing Unit (Loot Box) Hvy. Deuterium Engine (Loot Box) Imp. VTOL Module (1467) Imp. VTOL Module (1467) Targeting Computer (Loot Box) Sensor Array (587) Enh. Flamer (753) Enh. Flamer (753) Lgt. Nuclear Core (749) Imp. VTOL Module (827) Plasma Cutter (799) Enh. Flamer (913) Reaction Control System (Loot Box) Aluminum Leg (Loot Box) Hvy. Assault Cannon (796) Force Booster (Loot Box) Imp. Medium Laser (683) Prc. Shock Rifle (925) Com. Wheel (529) Sub. Shrapnel Launcher (830) F-cell Engine (859) Core Analyzer (953) Imp. Recalibrator (Loot Box) Hvy. Proton Cannon (Loot Box) Scatter Rocket Array (2304) Arm. Treads (944) Lightning Gun (Loot Box) Imp. Weapon Shielding (559) Imp. Heavy Machine Gun (949) Arm. Medium Treads (1806) Sml. Matter Pod (587) Antimatter Reactor (Loot Box) 0b10 Decoder Chip [Generic] (814) Prc. Shock Rifle (792) Hyp. Gauss Cannon (1028) Imp. Force Field (Loot Box) Hyp. Gauss Cannon (954) Enh. Armored Leg (914) Cld. Particle Cannon (828) Imp. Heavy Armor Plating (1022) Railgun (Loot Box) Fission Core (Loot Box) Arm. Leg (1065) Lgt. Quantum Reactor (Loot Box) Impulse Thruster Array (Loot Box) Imp. Targeting Computer (751) Exp. Signal Interpreter (1268) Mak. Sensor Array (1142) Quantum Reactor (Loot Box) Hvy. Proton Cannon (1042) Adv. Variable Charge Gun (1032) Adv. Variable Charge Gun (1305) Adv. Variable Charge Gun (1305) Lance (Loot Box) Imp. Sensor Array (758) Enh. Quantum Rifle (Loot Box) Cmb. Linear Gravjet (Loot Box) Enh. Quantum Rifle (Loot Box) Enh. Quantum Rifle (Loot Box) Enh. Gamma Bomb Array (Loot Box) Com. Linear Accelerator (Loot Box) Game ------ Seed FlightMetaSpear Manual? 0 Play Time 00:57:30 Cumulative 702.2 hours Start 2024.03.10 @ 01:02:33 End 2024.03.10 @ 14:48:19 Sessions 3 Manual Loads 0 Difficulty Rogue Special Mode AFD2019/Pay2Buy Game No. 733 Rogue 458 Adventurer 123 Explorer 152 Win Type - Total 26 Types 20/0/4/1/0/0/0/1/0 Lore% 83 Gallery% 91 Achievement% 76 Wizard Run 0 Options --------- Layout 0 ASCII 1 Keyboard 1 Movement Numpad Keybinds 0 Fullscreen 2 Font 18/Terminus Map View 76x50 Zoom Use 1% Tactical HUD 1 Map Filters NONE Filters NONE Steam 1 RUN: b444ea9a-3316-4ddf-a096-35a8ad229abd